bitfinex-derivatives/quotes_SOLF0:USTF0_20250111
["timestamp","ask_amount","ask_price","bid_price","bid_amount"]
[1736587234060,2.6945,185.61,185.58,7.2002703]
[1736587234359,2.6945,185.61,185.56,7.2002703]
[1736587234561,2.6945,185.61,185.55,3.1732]
[1736587234860,2.6945,185.61,185.56,7.2002703]
[1736587235559,2.6945,185.61,185.54,2.6955]
[1736587235864,2.6945,185.61,185.56,7.2002703]
[1736587252973,2.6942,185.63,185.58,7.2002703]
[1736587253175,2.6942,185.63,185.53,1.5401]
[1736587253368,2.6942,185.63,185.58,7.2002703]
[1736587253671,2.6943,185.62,185.58,7.2002703]
[1736587258372,2.6943,185.62,185.6,7.2002703]
[1736587258676,148.5792682,185.64,185.6,7.2002703]
[1736587260079,151.2734682,185.64,185.6,7.2002703]
[1736587261178,148.5792682,185.64,185.6,7.2002703]
[1736587261675,148.5792682,185.64,185.62,7.2002703]
[1736587262581,151.2732682,185.65,185.62,7.2002703]
[1736587263180,148.5792682,185.64,185.62,7.2002703]
[1736587263883,151.2732682,185.65,185.62,7.2002703]
[1736587264982,151.2732682,185.65,185.63,3.3117]
[1736587265283,2.694,185.65,185.63,3.3117]
[1736587265980,148.5792682,185.66,185.63,3.3117]
[1736587266180,148.5792682,185.66,185.64,7.2002703]
[1736587266685,146.0444682,185.67,185.64,7.2002703]
[1736587267279,2.6935,185.68,185.64,7.2002703]
[1736587267479,29.92228442,185.69,185.66,7.2002703]
[1736587267674,29.92228442,185.69,185.68,7.2002703]
[1736587267879,24.85348442,185.69,185.68,7.2002703]
[1736587268078,186.27796839,185.73,185.68,7.2002703]
[1736587268384,2.6928,185.73,185.68,7.2002703]
[1736587269084,2.6928,185.73,185.68,9.8936703]
[1736587270189,414.70549452,185.75,185.68,9.8936703]
[1736587270386,2.6926,185.74,185.68,9.8936703]
[1736587271687,223.92005583,185.75,185.7,7.2002703]
[1736587271889,223.92005583,185.75,185.7,9.8933703]
[1736587272089,12.5902703,185.77,185.7,9.8933703]
[1736587272285,12.5902703,185.77,185.72,7.2002703]
[1736587272688,8.082,185.78,185.72,7.2002703]
[1736587272889,2.692,185.78,185.72,7.2002703]
[1736587274090,2.692,185.78,185.72,9.8930703]
[1736587274287,7.2002703,185.79,185.74,7.2002703]
[1736587274491,2.6918,185.8,185.74,7.2002703]
[1736587274691,12.5902703,185.81,185.74,7.2002703]
[1736587274893,7.2002703,185.79,185.74,7.2002703]
[1736587276091,9.8922703,185.79,185.74,7.2002703]
[1736587286506,2.692,185.79,185.74,7.2002703]
[1736587293910,2.692,185.78,185.71,2.6929]
[1736587294112,2.692,185.78,185.74,7.2002703]
[1736587294907,148.65609313,185.8,185.74,7.2002703]
[1736587295210,2.6918,185.79,185.74,7.2002703]
[1736587296112,148.65609313,185.8,185.76,7.2002703]
[1736587296313,2.6916,185.81,185.76,7.2002703]
[1736587297413,148.65609313,185.82,185.78,7.2002703]
[1736587297909,155.85636343,185.83,185.78,7.2002703]
[1736587298112,2.6914,185.82,185.78,7.2002703]
[1736587300214,151.34749313,185.82,185.78,7.2002703]
[1736587303218,148.65609313,185.81,185.78,7.2002703]
[1736587303416,148.65609313,185.81,185.66,5.03821005]
[1736587303721,148.65609313,185.81,185.77,7.2002703]
[1736587304318,151.34779313,185.8,185.77,7.2002703]
[1736587304727,148.65609313,185.8,185.77,7.2002703]
[1736587305723,148.65609313,185.81,185.77,7.2002703]
[1736587306025,148.65609313,185.8,185.77,7.2002703]
[1736587307729,148.65609313,185.79,185.77,7.2002703]
[1736587308918,183.58516839,185.78,185.77,7.2002703]
[1736587309722,183.58516839,185.79,185.77,7.2002703]
[1736587311026,150.03482568,185.78,185.77,7.2002703]
[1736587311728,183.58516839,185.79,185.77,7.2002703]
[1736587312724,149.9909853,185.78,185.77,7.2002703]
[1736587313723,149.9909853,185.78,185.77,9.8923703]
[1736587315824,149.9909853,185.79,185.77,9.8923703]
[1736587316225,149.9909853,185.78,185.77,9.8923703]
[1736587319433,149.9909853,185.8,185.77,9.8923703]
[1736587321431,149.9909853,185.8,185.75,9.8925703]
[1736587321735,152.6827853,185.8,185.75,9.8925703]
[1736587322234,149.9909853,185.79,185.76,2.6922]
[1736587324239,149.9909853,185.78,185.76,2.6922]
[1736587325536,149.9909853,185.79,185.76,2.6922]
[1736587326240,149.9909853,185.78,185.76,2.6922]
[1736587326540,149.9909853,185.79,185.76,2.6922]
[1736587327734,149.9909853,185.79,185.75,7.2002703]
[1736587327939,149.9909853,185.79,185.78,2.692]
[1736587329438,149.9909853,185.8,185.78,2.692]
[1736587330142,149.9909853,185.79,185.78,2.692]
[1736587334046,263.61268852,185.83,185.79,2.6918]
[1736587335244,256.41241822,185.83,185.79,2.6918]
[1736587335948,253.72111822,185.83,185.79,2.6918]
[1736587337747,223.92005583,185.8,185.79,2.6918]
[1736587339044,223.92005583,185.8,185.79,9.8920703]
[1736587339949,118.74986612,185.8,185.79,9.8920703]
[1736587340139,150.0515472,185.82,185.81,2.6915]
[1736587340338,150.0515472,185.82,185.81,9.8917703]
[1736587340550,150.0515472,185.83,185.81,7.2002703]
[1736587340846,150.0515472,185.83,185.82,2.6914]
[1736587341247,118.74986612,185.85,185.81,7.2002703]
[1736587341450,118.74986612,185.85,185.84,9.8913703]
[1736587342342,5.389,185.88,185.84,7.2002703]
[1736587342541,298.56007444,185.89,185.86,7.2002703]
[1736587344452,298.56007444,185.89,185.78,4.8648]
[1736587344750,298.56007444,185.89,185.84,7.2002703]
[1736587345249,2.6905,185.88,185.84,7.2002703]
[1736587346350,298.56007444,185.89,185.84,7.2002703]
[1736587346551,301.25047444,185.89,185.84,7.2002703]
[1736587351352,9.8910703,185.86,185.8,2.6917]
[1736587351654,7.2002703,185.84,185.79,7.2002703]
[1736587352155,9.8913703,185.84,185.79,7.2002703]
[1736587352451,7.2002703,185.84,185.79,7.2002703]
[1736587353056,1.632,185.85,185.79,7.2002703]
[1736587354054,1.632,185.85,185.8,2.6917]
[1736587354953,4.323,185.85,185.79,7.2002703]
[1736587356448,4.323,185.85,185.79,9.8920703]
[1736587363258,4.323,185.85,185.79,2.6918]
[1736587363448,4.323,185.85,185.79,9.8920703]
[1736587374855,8.0798,185.87,185.83,7.2002703]
[1736587375057,5.389,185.87,185.83,7.2002703]
[1736587375560,5.389,185.87,185.85,7.2002703]
[1736587375759,5.389,185.88,185.85,7.2002703]
[1736587376154,301.25057444,185.89,185.85,7.2002703]
[1736587378261,2.6905,185.89,185.85,7.2002703]
[1736587379460,2.6907,185.87,185.81,9.8916703]
[1736587380263,7.2002703,185.88,185.81,9.8916703]
[1736587380459,7.2002703,185.88,185.81,7.2002703]
[1736587380663,7.2002703,185.86,185.81,7.2002703]
[1736587381763,9.8910703,185.86,185.81,7.2002703]
[1736587382261,9.8910703,185.86,185.81,9.8917703]
[1736587382262,2.6908,185.86,185.81,9.8917703]
[1736587383264,2.6908,185.86,185.81,2.6915]
[1736587383463,2.6908,185.86,185.81,9.8917703]
[1736587385067,150.0515472,185.87,185.83,7.2002703]
[1736587385470,150.0515472,185.87,185.77,1.6414]
[1736587385664,150.0515472,185.87,185.84,9.8913703]
[1736587385864,2.6904,185.9,185.84,9.8913703]
[1736587386258,2.6904,185.9,185.86,7.2002703]
[1736587388668,2.6901,185.91,185.86,9.8910703]
[1736587389669,150.0515472,185.94,185.9,7.2002703]
[1736587390466,150.0515472,185.94,185.9,9.8904703]
[1736587390667,9.8896703,185.96,185.9,9.8904703]
[1736587392463,2.6894,185.96,185.9,9.8904703]
[1736587393071,7.2002703,185.97,185.9,9.8904703]
[1736587393270,7.2002703,185.95,185.88,7.2002703]
[1736587393464,7.2002703,185.95,185.83,4.9541]
[1736587393668,7.2002703,185.93,185.87,7.2002703]
[1736587394474,150.0515472,185.96,185.87,7.2002703]
[1736587394675,7.2002703,185.93,185.87,7.2002703]
[1736587395070,2.69,185.92,185.87,7.2002703]
[1736587397971,7.2002703,185.93,185.87,7.2002703]
[1736587398271,7.2002703,185.91,185.85,7.2002703]
[1736587399075,9.8903703,185.91,185.85,9.8910703]
[1736587399973,2.6903,185.9,185.85,9.8910703]
[1736587400776,9.8903703,185.91,185.85,9.8910703]
[1736587402776,9.8903703,185.91,185.85,2.6908]
[1736587402971,9.8903703,185.91,185.85,9.8910703]
[1736587404481,9.8901703,185.93,185.85,7.2002703]
[1736587404780,9.8901703,185.93,185.87,7.2002703]
[1736587405181,9.8901703,185.93,185.87,9.8908703]
[1736587405377,2.6899,185.93,185.87,7.2002703]
[1736587405575,8.0787,185.94,185.89,7.2002703]
[1736587406382,2.6895,185.95,185.89,7.2002703]
[1736587408185,2.6895,185.95,185.9,2.6902]
[1736587410686,7.2002703,185.97,185.89,7.2002703]
[1736587410687,9.8895703,185.97,185.91,2.6901]
[1736587411485,9.8895703,185.97,185.91,9.8903703]
[1736587416291,7.2002703,185.97,185.91,9.8903703]
[1736587416491,2.6894,185.96,185.91,9.8903703]
[1736587418295,2.6894,185.96,185.91,7.2002703]
[1736587418493,2.6894,185.96,185.92,2.6899]
[1736587424698,152.7409472,185.96,185.92,2.6899]
[1736587426501,150.0515472,185.96,185.92,2.6899]
[1736587426691,150.0515472,185.96,185.93,2.6897]
[1736587426890,150.0515472,185.96,185.91,7.2002703]
[1736587427296,150.0515472,185.96,185.93,2.6898]
[1736587427901,152.7409472,185.96,185.91,7.2002703]
[1736587428097,2.6894,185.96,185.91,7.2002703]
[1736587428897,152.7408472,185.97,185.92,2.6898]
[1736587429799,2.6893,185.97,185.92,2.6898]
[1736587430899,152.7408472,185.97,185.92,2.6898]
[1736587431700,2.6893,185.97,185.92,2.6898]
[1736587432302,157.2518175,185.99,185.91,7.2002703]
[1736587432595,2.6891,185.98,185.93,9.8900703]
[1736587433702,7.2002703,185.99,185.94,2.6896]
[1736587434002,376.0896875,186.0,185.94,2.6896]
[1736587434201,383.2899578,186.0,185.94,2.6896]
[1736587435102,2.689,185.99,185.94,2.6896]
[1736587435302,383.2899578,186.0,185.94,2.6896]
[1736587436102,385.9787578,186.0,185.94,2.6896]
[1736587436401,374.5358875,186.0,185.97,2.6891]
[1736587436606,224.4843403,186.0,185.97,7.2002703]
[1736587437405,224.4843403,186.0,185.98,2.689]
[1736587437609,152.7398472,186.04,185.98,2.689]
[1736587438299,2.6883,186.04,185.99,7.2002703]
[1736587439503,2.6883,186.04,185.99,9.8891703]
[1736587439804,15.2773703,186.05,185.99,9.8891703]
[1736587440206,150.0515472,186.03,185.99,9.8891703]
[1736587444812,152.7397472,186.04,185.99,9.8891703]
[1736587446319,2.6882,186.04,185.99,9.8891703]
[1736587447220,150.0515472,186.05,185.99,9.8891703]
[1736587447419,159.9399175,186.05,185.99,9.8891703]
[1736587448623,9.8883703,186.05,185.99,9.8891703]
[1736587448823,150.0515472,186.06,186.02,2.6884]
[1736587449422,150.0515472,186.06,186.03,7.2002703]
[1736587449723,150.0515472,186.06,186.03,9.8886703]
[1736587450124,150.0515472,186.06,186.01,7.2002703]
[1736587450320,2.6881,186.05,186.01,7.2002703]
[1736587451719,2.6879,186.07,186.01,9.8887703]
[1736587454325,150.0515472,186.1,186.03,7.2002703]
[1736587454526,2.6876,186.08,186.03,7.2002703]
[1736587454727,150.0515472,186.06,186.03,7.2002703]
[1736587455628,150.0515472,186.07,186.03,7.2002703]
[1736587456430,152.7391472,186.08,186.03,7.2002703]
[1736587458631,150.0515472,186.08,186.03,7.2002703]
[1736587458832,2.6878,186.07,186.03,7.2002703]
[1736587459631,150.0515472,186.08,186.03,7.2002703]
[1736587459832,150.0515472,186.07,186.03,7.2002703]
[1736587460636,152.7391472,186.08,186.03,9.8885703]
[1736587461936,150.0515472,186.08,186.03,7.2002703]
[1736587462132,2.6875,186.09,186.04,2.6881]
[1736587463132,2.6877,186.08,186.05,7.2002703]
[1736587463338,151.5959472,186.12,186.07,7.2002703]
[1736587463644,150.0515472,186.13,186.09,7.2002703]
[1736587464537,152.7385472,186.13,186.09,7.2002703]
[1736587464938,2.687,186.13,186.09,7.2002703]
[1736587465139,150.0515472,186.14,186.09,7.2002703]
[1736587465743,2.6868,186.14,186.09,7.2002703]
[1736587466538,2.6874,186.1,186.04,2.6881]
[1736587466739,7.2002703,186.11,186.05,7.2002703]
[1736587467344,2.6874,186.1,186.05,7.2002703]
[1736587468543,157.2518175,186.13,186.05,9.8882703]
[1736587468744,150.0515472,186.09,186.05,9.8882703]
[1736587469744,190.251634,186.11,186.05,9.8882703]
[1736587469745,150.0515472,186.1,186.05,9.8882703]
[1736587470144,150.0515472,186.09,186.07,7.2002703]
[1736587471648,150.0515472,186.09,186.08,2.6876]
[1736587471948,150.0515472,186.11,186.08,2.6876]
[1736587472149,150.0515472,186.11,186.09,7.2002703]
[1736587475947,150.0515472,186.11,186.09,9.8877703]
[1736587476647,150.0515472,186.11,186.09,7.2002703]
[1736587477450,2.687,186.13,186.09,7.2002703]
[1736587484259,224.4843403,186.14,186.11,7.2002703]
[1736587484463,374.5358875,186.14,186.11,7.2002703]
[1736587485258,150.0515472,186.16,186.11,7.2002703]
[1736587485759,150.0515472,186.16,186.12,2.687]
[1736587486963,150.0515472,186.17,186.12,2.687]
[1736587487160,152.7378472,186.17,186.13,7.2002703]
[1736587487863,152.7378472,186.17,186.12,2.687]
[1736587488062,152.7378472,186.17,186.13,7.2002703]
[1736587490564,152.7378472,186.17,186.12,2.687]
[1736587490864,152.7378472,186.17,186.13,7.2002703]
[1736587491860,150.0515472,186.17,186.13,9.8871703]
[1736587492262,187.564434,186.14,186.13,9.8871703]
[1736587492665,187.564434,186.14,186.13,7.2002703]
[1736587493062,149.44190525,186.14,186.13,7.2002703]
[1736587493666,187.564434,186.15,186.13,7.2002703]
[1736587495967,187.564434,186.14,186.13,7.2002703]
[1736587496267,187.564434,186.14,186.12,7.2002703]
[1736587498964,2.6865,186.16,186.12,7.2002703]
[1736587502571,2.6865,186.16,186.07,5.42]
[1736587502572,2.6868,186.14,186.1,7.2002703]
[1736587502975,7.2002703,186.16,186.05,4.9052]
[1736587503175,7.2002703,186.14,186.08,7.2002703]
[1736587504173,2.6871,186.12,186.08,7.2002703]
[1736587504569,149.56081636,186.13,186.08,9.8878703]
[1736587505778,2.6871,186.12,186.08,9.8878703]
[1736587506474,149.56081636,186.13,186.05,3.324]
[1736587506781,7.2002703,186.12,186.04,5.35556271]
[1736587506974,7.2002703,186.12,186.04,12.55583301]
[1736587507773,152.24841636,186.09,186.04,12.55583301]
[1736587508276,149.56081636,186.09,186.06,7.2002703]
[1736587508468,149.56081636,186.09,186.08,7.2002703]
[1736587509375,149.56081636,186.12,186.08,9.8878703]
[1736587509574,149.56081636,186.12,186.1,7.2002703]
[1736587510078,152.24771636,186.13,186.1,7.2002703]
[1736587510376,149.56081636,186.13,186.1,7.2002703]
[1736587511076,149.56081636,186.13,186.12,7.2002703]
[1736587511876,149.56081636,186.15,186.12,7.2002703]
[1736587513277,152.24731636,186.16,186.12,7.2002703]
[1736587514881,187.564434,186.14,186.12,7.2002703]
[1736587517282,187.564434,186.14,186.13,7.2002703]
[1736587517679,149.57382373,186.15,186.12,2.687]
[1736587517881,149.57382373,186.15,186.14,7.2002703]
[1736587520682,190.250934,186.16,186.12,7.2002703]
[1736587521184,2.6865,186.16,186.12,7.2002703]
[1736587522580,2.687,186.13,186.07,2.6877]
[1736587522782,2.687,186.13,186.09,7.2002703]
[1736587524174,2.6868,186.14,186.09,9.8877703]
[1736587524373,152.23189092,186.14,186.09,9.8877703]
[1736587525978,7.2002703,186.13,186.05,7.2002703]
[1736587526183,8.7626703,186.13,186.05,7.2002703]
[1736587526382,7.2002703,186.11,186.05,7.2002703]
[1736587526577,2.6876,186.09,186.05,7.2002703]
[1736587526779,156.74536122,186.11,186.05,7.2002703]
[1736587527379,149.54509092,186.1,186.05,7.2002703]
[1736587528081,2.6875,186.09,186.05,7.2002703]
[1736587529388,2.6876,186.08,186.04,5.35556271]
[1736587529582,152.23269092,186.08,186.04,5.35556271]
[1736587530685,149.54509092,186.07,186.04,5.35556271]
[1736587532286,152.23289092,186.07,186.04,5.35556271]
[1736587532487,2.6878,186.07,186.04,5.35556271]
[1736587533986,2.6878,186.07,185.99,36.33371714]
[1736587533987,2.6881,186.06,186.01,7.2002703]
[1736587534586,152.23319092,186.06,186.01,7.2002703]
[1736587534992,149.54509092,186.06,186.01,7.2002703]
[1736587535289,149.54509092,186.07,186.03,7.2002703]
[1736587536589,2.6878,186.08,186.03,7.2002703]
[1736587537088,7.2002703,186.09,186.03,7.2002703]
[1736587537290,2.6878,186.07,186.03,7.2002703]
[1736587540693,2.6879,186.06,186.03,7.2002703]
[1736587543392,154.93409092,186.12,186.03,7.2002703]
[1736587543596,7.2002703,186.1,186.03,7.2002703]
[1736587544298,2.6879,186.07,186.03,7.2002703]
[1736587550304,7.2002703,186.1,186.03,7.2002703]
[1736587550505,2.6879,186.06,186.03,7.2002703]
[1736587552208,5.389,186.12,186.03,7.2002703]
[1736587552408,2.6878,186.07,186.03,7.2002703]
[1736587556315,7.2002703,186.09,186.01,2.6885]
[1736587556515,7.2002703,186.09,186.01,7.2002703]
[1736587556716,2.6878,186.07,186.01,7.2002703]
[1736587556908,7.2002703,186.09,186.01,7.2002703]
[1736587558217,2.6882,186.05,186.01,7.2002703]
[1736587559319,2.6882,186.05,186.01,9.8888703]
[1736587561016,149.54509092,186.08,186.03,7.2002703]
[1736587561220,149.54509092,186.08,186.05,7.2002703]
[1736587561821,149.54509092,186.08,186.06,2.6879]
[1736587562322,149.54509092,186.12,186.06,2.6879]
[1736587562920,2.6872,186.11,186.07,7.2002703]
[1736587569029,7.2002703,186.13,186.07,9.8880703]
[1736587570020,9.8872703,186.13,186.07,9.8880703]
[1736587572227,7.2002703,186.13,186.07,9.8880703]
[1736587572428,2.6871,186.12,186.07,9.8880703]
[1736587598055,152.23219092,186.12,186.07,9.8880703]
[1736587598756,2.6871,186.12,186.07,9.8880703]
[1736587599762,152.23219092,186.12,186.07,9.8880703]
[1736587600461,2.6871,186.12,186.07,9.8880703]
[1736587602654,152.23219092,186.12,186.07,9.8880703]
[1736587610663,156.74536122,186.12,186.04,7.2002703]
[1736587610868,7.2002703,186.1,185.99,3.2397]
[1736587611071,7.2002703,186.06,185.99,3.2397]
[1736587611265,2.6883,186.04,185.99,10.4399703]
[1736587611769,9.8883703,186.06,186.0,2.6888]
[1736587611972,9.8883703,186.06,186.01,7.2002703]
[1736587614772,2.6881,186.05,186.0,7.2002703]
[1736587624678,7.2002703,186.06,186.0,7.2002703]
[1736587624979,2.6882,186.04,186.0,7.2002703]
[1736587635984,2.6881,186.06,186.02,7.2002703]
[1736587640488,2.6877,186.08,186.04,7.2002703]
[1736587640983,2.6878,186.07,186.04,7.2002703]
[1736587646981,149.54509092,186.09,186.06,7.2002703]
[1736587647384,149.54509092,186.1,186.06,7.2002703]
[1736587648386,153.81079092,186.11,186.06,7.2002703]
[1736587649287,4.2657,186.11,186.06,7.2002703]
[1736587650089,2.6872,186.11,186.06,7.2002703]
[1736587656893,2.6874,186.1,186.06,7.2002703]
[1736587658296,149.54509092,186.13,186.08,9.8878703]
[1736587658995,149.54509092,186.13,186.03,1.5624]
[1736587659191,149.54509092,186.13,186.04,7.2002703]
[1736587659192,7.2002703,186.1,186.04,7.2002703]
[1736587659393,2.688,186.06,186.02,7.2002703]
[1736587659595,2.688,186.06,186.0,41.71241085]
[1736587660490,2.688,186.06,186.0,9.8889703]
[1736587660697,2.688,186.06,186.02,7.2002703]
[1736587661598,149.54509092,186.1,186.02,7.2002703]
[1736587661798,2.6877,186.08,186.04,7.2002703]
[1736587663103,2.6877,186.08,186.02,9.8887703]
[1736587666906,2.6878,186.07,186.02,9.8887703]
[1736587669412,7.2002703,186.07,186.02,7.2002703]
[1736587669610,2.688,186.06,186.0,9.8890703]
[1736587669909,7.2002703,186.07,186.0,9.8890703]
[1736587670115,2.6881,186.05,186.0,9.8890703]
[1736587676609,152.23289092,186.08,186.02,9.8887703]
[1736587677110,2.6878,186.08,186.02,9.8887703]
[1736587677806,2.6878,186.08,185.99,3.2397]
[1736587677807,2.6878,186.08,186.04,7.2002703]
[1736587678011,2.6875,186.09,186.04,9.8884703]
[1736587680620,8.0694,186.1,186.06,7.2002703]
[1736587681713,2.6874,186.1,186.06,7.2002703]
[1736587685619,180.9790637,186.13,186.08,7.2002703]
[1736587685916,149.54509092,186.13,186.08,7.2002703]
[1736587687016,194.7647043,186.15,186.08,7.2002703]
[1736587687017,7.2002703,186.15,186.08,7.2002703]
[1736587687216,2.6868,186.14,186.08,9.8878703]
[1736587688118,2.6869,186.13,186.08,7.2002703]
[1736587690421,2.6869,186.13,186.08,9.8878703]
[1736587692025,7.2002703,186.15,186.08,9.8878703]
[1736587692225,2.6868,186.14,186.08,9.8878703]
[1736587702725,2.6872,186.12,186.06,2.6878]
[1736587702932,7.2002703,186.11,186.05,7.2002703]
[1736587704331,9.8875703,186.11,186.05,9.8882703]
[1736587707931,2.6874,186.1,186.05,9.8882703]
[1736587708437,2.6874,186.1,186.05,2.688]
[1736587708636,2.6874,186.1,186.05,9.8882703]
[1736587718042,2.6876,186.09,186.03,2.6882]
[1736587718339,2.6876,186.09,186.04,7.2002703]
[1736587718639,2.6876,186.09,186.04,9.8884703]
[1736587729642,7.2002703,186.09,186.02,5.57956954]
[1736587729841,7.2002703,186.07,186.02,5.57956954]
[1736587730643,2.688,186.06,186.02,5.57956954]
[1736587732244,7.2002703,186.07,186.02,5.57956954]
[1736587732547,2.6883,186.04,186.0,7.2002703]
[1736587733748,2.6883,186.04,185.99,5.9286]
[1736587733950,2.6883,186.04,186.0,7.2002703]
[1736587737752,2.6883,186.04,186.0,9.8890703]
[1736587738252,2.6881,186.05,186.0,9.8890703]
[1736587741753,149.54509092,186.09,186.02,7.2002703]
[1736587741950,2.6878,186.07,186.02,9.8887703]
[1736587742949,7.2002703,186.08,186.02,7.2002703]
[1736587743554,9.8880703,186.08,186.02,9.8887703]
[1736587744856,7.2002703,186.08,186.02,9.8887703]
[1736587745149,2.6878,186.07,186.02,2.6885]
[1736587754559,2.6878,186.07,186.01,9.8888703]
[1736587759568,2.688,186.06,186.01,9.8888703]
[1736587791692,149.54509092,186.09,186.01,9.8888703]
[1736587791886,2.6878,186.07,186.01,9.8888703]
[1736587793294,149.54509092,186.08,186.01,9.8888703]
[1736587793489,2.6879,186.06,186.01,9.8888703]
[1736587797399,7.2002703,186.08,185.99,13.1287703]
[1736587797595,156.74536122,186.08,185.99,13.1287703]
[1736587798303,5.382,186.07,185.99,10.4399703]
[1736587798494,2.6882,186.04,186.0,2.6888]
[1736587799500,2.6882,186.04,186.01,7.2002703]
[1736587800200,2.6881,186.05,186.01,7.2002703]
[1736587803008,5.382,186.07,186.01,7.2002703]
[1736587803305,149.54509092,186.08,186.05,7.2002703]
[1736587803508,149.54509092,186.08,186.07,7.2002703]
[1736587803806,144.48249092,186.08,186.07,9.8880703]
[1736587804207,2.687,186.13,186.08,2.6875]
[1736587804407,2.687,186.13,186.09,7.2002703]
[1736587808111,2.687,186.13,186.08,2.6875]
[1736587809310,7.2002703,186.14,186.08,2.6875]
[1736587809708,7.2002703,186.14,186.09,2.6874]
[1736587810210,7.2002703,186.14,186.09,9.8876703]
[1736587815719,2.6869,186.13,186.07,9.8879703]
[1736587818315,9.8874703,186.12,186.07,2.6877]
[1736587819319,7.2002703,186.12,186.07,2.6877]
[1736587819520,2.6872,186.11,186.07,2.6877]
[1736587821820,7.2002703,186.12,186.05,7.2002703]
[1736587822025,7.2002703,186.08,186.01,5.10833216]
[1736587822427,2.6881,186.05,186.01,5.10833216]
[1736587831934,7.2002703,186.06,186.01,5.10833216]
[1736587832128,9.8881703,186.06,186.01,5.10833216]
[1736587832427,9.8881703,186.06,186.01,7.79693216]
[1736587832633,2.6879,186.06,186.01,14.99720246]
[1736587832833,7.2002703,186.08,186.01,14.99720246]
[1736587833027,2.6878,186.07,186.01,14.99720246]
[1736587833335,7.2002703,186.06,185.98,2.6891]
[1736587833531,2.6884,186.03,185.98,2.6891]
[1736587834637,7.2002703,186.04,185.97,7.2002703]
[1736587834830,7.2002703,186.06,185.99,7.2002703]
[1736587835431,7.2002703,186.06,186.01,2.6886]
[1736587837132,9.8882703,186.06,186.01,9.8888703]
[1736587837633,7.2002703,186.06,186.01,7.2002703]
[1736587837839,2.6875,186.09,186.04,2.6882]
[1736587839042,2.6875,186.09,186.03,7.2002703]
[1736587839241,2.6875,186.09,186.03,9.8885703]
[1736587839737,9.8877703,186.09,186.03,9.8885703]
[1736587840636,2.6878,186.07,186.01,9.8887703]
[1736587840840,7.2002703,186.07,186.01,9.8887703]
[1736587841037,7.2002703,186.07,186.01,7.2002703]
[1736587841237,7.2002703,186.07,185.99,7.2002703]
[1736587841438,2.688,186.06,185.99,9.8890703]
[1736587842731,2.688,186.06,185.99,7.2002703]
[1736587842936,2.688,186.06,186.0,2.6888]
[1736587843435,7.2002703,186.07,185.99,7.2002703]
[1736587843639,9.8880703,186.07,186.01,9.8888703]
[1736587849046,2.6878,186.07,186.01,9.8888703]
[1736587849646,2.6878,186.07,186.02,2.6885]
[1736587851848,2.6878,186.07,186.01,9.8888703]
[1736587856252,7.2002703,186.07,186.01,7.2002703]
[1736587856744,7.2002703,186.07,186.0,2.6888]
[1736587857152,2.6881,186.05,186.0,2.6888]
[1736587858355,7.2002703,186.05,185.99,7.2002703]
[1736587860158,2.6884,186.03,185.99,7.2002703]
[1736587864264,2.6885,186.02,185.99,7.2002703]
[1736587866464,2.6885,186.02,185.98,2.689]
[1736587868860,2.6885,186.02,185.97,7.2002703]
[1736587869067,2.6887,186.01,185.97,9.8894703]
[1736587869265,2.6887,186.01,185.95,7.2002703]
[1736587869865,9.8889703,186.01,185.96,2.6893]
[1736587870061,9.8889703,186.01,185.93,5.04960797]
[1736587870062,7.2002703,186.01,185.93,5.04960797]
[1736587870364,7.2002703,186.01,185.94,7.2002703]
[1736587871164,9.8890703,186.01,185.94,9.8898703]
[1736587871861,2.6889,186.0,185.94,9.8898703]
[1736587873664,7.2002703,185.99,185.94,9.8898703]
[1736587874363,7.2002703,185.99,185.94,2.6896]
[1736587874561,9.8891703,185.99,185.93,7.73940797]
[1736587876170,7.2002703,185.99,185.94,2.6896]
[1736587877067,5.382,186.02,185.93,12.24987827]
[1736587877263,5.382,186.02,185.95,7.2002703]
[1736587877466,5.382,186.02,185.97,7.2002703]
[1736587879170,5.382,186.02,185.97,9.8894703]
[1736587880372,9.8886703,186.03,185.97,9.8894703]
[1736587883182,7.2002703,186.03,185.97,7.2002703]
[1736587883372,2.6882,186.04,185.98,2.6891]
[1736587883578,7.2002703,186.03,185.98,2.6891]
[1736587887082,180.25619732,186.08,185.99,7.2002703]
[1736587887382,2.688,186.06,186.01,7.2002703]
[1736587887578,7.2002703,186.07,186.01,7.2002703]
[1736587887882,9.8880703,186.07,186.02,2.6885]
[1736587898496,9.8880703,186.07,186.01,7.2002703]
[1736587898786,9.8880703,186.07,186.01,9.8888703]
[1736587901194,154.83938437,186.11,186.03,7.2002703]
[1736587901399,7.2002703,186.09,186.03,7.2002703]